[Event "TUR-chT Superleague 2018"]
[Site "Ankara"]
[Date "2018.08.02"]
[Round "9"]
[White "Sahin, Hayrun Nisa"]
[Black "Ayan, Bengu Sena"]
[Result "1-0"]
[ECO "C06"]
[WhiteElo "1752"]
[BlackElo "1894"]
[Annotator "NA"]
[PlyCount "71"]
[EventDate "2018.07.25"]
[EventType "team-tourn"]
[EventCountry "TUR"]
[SourceTitle "playchess.com"]
[Source "ChessBase"]
[SourceQuality "1"]
[TimeControl "40/5400+30:1800+30"]

1. e4 {[%emt 0:00:30]} e6 {[%emt 0:00:30]} 2. d4 {[%emt 0:00:30]} d5 {[%emt 0:00:30]} 3. Nd2 {[%emt 0:00:30]} Nf6 {[%emt 0:00:30]} 4. e5 {[%emt 0:00:30]} Nfd7 {[%emt 0:00:30]} 5. Ngf3 {[%emt 0:00:30]} c5 {[%emt 0:00:30]} 6. c3 {[%emt 0:00:30]} Nc6 {[%emt 0:00:30]} 7. Bd3 {[%emt 0:00:30]} g6 {[%emt 0:00:00]} 8. O-O {[%emt 0:00:30]} Bg7 {[%emt 0:00:00]} 9. Re1 {[%emt 0:00:30]} O-O {[%emt 0:00:00]} 10. a3 {[%emt 0:02:30]} Qb6 {[%emt 0:02:00]} 11. dxc5 {[%emt 0:08:30]} Nxc5 {[%emt 0:00:30]} 12. Nf1 {[%emt 0:03:30]} Nd7 {[%emt 0:11:30]} 13. Bf4 {[%emt 0:31:30]} Qxb2 {[%emt 0:13:30]} 14. Rc1 {[%emt 0:03:30]} Qxa3 {[%emt 0:08:30]} 15. h4 {[%emt 0:02:30]} f6 {[%emt 0:09:30]} 16. exf6 {[%emt 0:01:30]} Nxf6 {[%emt 0:00:30]} 17. Ng5 {[%emt 0:04:30]} Ne4 {[%emt 0:11:30]} 18. Bxe4 {[%emt 0:05:30]} Rxf4 {[%emt 0:01:30]} 19. Bxd5 {[%emt 0:02:30]} Qc5 {[%emt 0:10:30]} 20. Qd2 {[%emt 0:01:30]} Rxh4 {[%emt 0:08:27]} 21. Nxe6 {[%emt 0:09:45]} Bxe6 {[%emt 0:00:54]} 22. Rxe6 {[%emt 0:00:07]} Kh8 {[%emt 0:01:34]} 23. Bxc6 {[%emt 0:06:55]} bxc6 {[%emt 0:01:10]} 24. Qd7 {[%emt 0:02:20]} Rf8 {[%emt 0:01:10]} 25. Rc2 {[%emt 0:00:17]} Qf5 {[%emt 0:01:53]} 26. Rce2 {[%emt 0:00:27]} Qb1 {[%emt 0:01:58]} 27. Re1 {[%emt 0:00:25]} Qb6 {[%emt 0:06:37]} 28. R1e3 {[%emt 0:02:55]} Rhf4 {[%emt 0:02:26]} 29. Re7 {[%emt 0:03:24]} Bxc3 {[%emt 0:02:52]} 30. Rxh7+ {[%emt 0:00:33]} Kg8 {[%emt 0:00:04]} 31. Rh6 {[%emt 0:00:25]} Bg7 {[%emt 0:01:23]} 32. Qe6+ {[%emt 0:01:41]} R4f7 {[%emt 0:00:32]} 33. Rxg6 {[%emt 0:00:43]} Qb2 {[%emt 0:00:40]} 34. Rxg7+ {[%emt 0:00:26]} Kxg7 {[%emt 0:00:49]} 35. Rg3+ {[%emt 0:00:04]} Kh8 {[%emt 0:00:31]} 36. Qh6+ {[%emt 0:00:03]} 1-0

[Event "TUR-chT Superleague 2018"]
[Site "Ankara"]
[Date "2018.08.02"]
[Round "9"]
[White "Yorgun, Yaren Naz"]
[Black "Erece, Ece Alkim"]
[Result "0-1"]
[ECO "B27"]
[WhiteElo "1725"]
[BlackElo "1788"]
[Annotator "NA"]
[PlyCount "160"]
[EventDate "2018.07.25"]
[EventType "team-tourn"]
[EventCountry "TUR"]
[SourceTitle "playchess.com"]
[Source "ChessBase"]
[SourceQuality "1"]
[TimeControl "40/5400+30:1800+30"]

1. e4 {[%emt 0:00:30]} g6 {[%emt 0:00:30]} 2. d4 {[%emt 0:00:00]} c5 {[%emt 0:00:30]} 3. Nf3 {[%emt 0:01:00]} cxd4 {[%emt 0:00:30]} 4. Qxd4 {[%emt 0:00:30]} Nf6 {[%emt 0:00:00]} 5. Nc3 {[%emt 0:00:00]} Nc6 {[%emt 0:00:00]} 6. Qa4 {[%emt 0:00:00]} d6 {[%emt 0:03:30]} 7. e5 {[%emt 0:03:30]} dxe5 {[%emt 0:00:30]} 8. Nxe5 {[%emt 0:00:00]} Bd7 {[%emt 0:02:30]} 9. Nxd7 {[%emt 0:00:00]} Qxd7 {[%emt 0:00:00]} 10. Be3 {[%emt 0:01:30]} Bg7 {[%emt 0:06:00]} 11. Rd1 {[%emt 0:00:30]} Qc7 {[%emt 0:03:30]} 12. Nb5 {[%emt 0:18:30]} Qe5 {[%emt 0:02:30]} 13. Be2 {[%emt 0:16:30]} O-O {[%emt 0:02:30]} 14. O-O {[%emt 0:02:30]} Qxb2 {[%emt 0:05:30]} 15. Bf3 {[%emt 0:31:30]} Qe5 {[%emt 0:26:30]} 16. Rfe1 {[%emt 0:03:59]} a6 {[%emt 0:01:30]} 17. Nd4 {[%emt 0:01:24]} Qc7 {[%emt 0:12:30]} 18. Nxc6 {[%emt 0:03:42]} bxc6 {[%emt 0:00:30]} 19. Bf4 {[%emt 0:01:11]} Qb6 {[%emt 0:02:30]} 20. Bxc6 {[%emt 0:02:10]} Rac8 {[%emt 0:00:30]} 21. Bf3 {[%emt 0:00:35]} e6 {[%emt 0:05:30]} 22. c4 {[%emt 0:01:30]} Rfd8 {[%emt 0:01:30]} 23. Rxd8+ {[%emt 0:02:29]} Rxd8 {[%emt 0:00:00]} 24. Be3 {[%emt 0:00:21]} Qc7 {[%emt 0:02:00]} 25. Qxa6 {[%emt 0:00:40]} Rc8 {[%emt 0:00:00]} 26. Be2 {[%emt 0:04:05]} Nd7 {[%emt 0:02:00]} 27. Rc1 {[%emt 0:01:17]} Nc5 {[%emt 0:00:30]} 28. Qb5 {[%emt 0:01:00]} Bf8 {[%emt 0:00:30]} 29. Rb1 {[%emt 0:00:40]} Ra8 {[%emt 0:00:30]} 30. a4 {[%emt 0:01:37]} Nxa4 {[%emt 0:01:55]} 31. Bf3 {[%emt 0:01:16]} Ra5 {[%emt 0:04:07]} 32. Qc6 {[%emt 0:00:31]} Qxc6 {[%emt 0:01:33]} 33. Bxc6 {[%emt 0:00:30]} Nc3 {[%emt 0:00:00]} 34. Rf1 {[%emt 0:00:53]} Bc5 {[%emt 0:01:45]} 35. Bd2 {[%emt 0:00:48]} Ne2+ {[%emt 0:00:30]} 36. Kh1 {[%emt 0:00:00]} Ra2 {[%emt 0:00:00]} 37. Be3 {[%emt 0:00:00]} Bxe3 {[%emt 0:02:02]} 38. fxe3 {[%emt 0:00:19]} Rc2 {[%emt 0:00:30]} 39. Bb5 {[%emt 0:00:30]} Nc3 {[%emt 0:00:30]} 40. Be8 {[%emt 0:00:30]} f5 {[%emt 0:00:00]} 41. Bd7 {[%emt 0:12:03]} Kf7 {[%emt 0:03:08]} 42. Bc6 {[%emt 0:13:50]} Ke7 {[%emt 0:02:30]} 43. g3 {[%emt 0:06:24]} Kd6 {[%emt 0:01:30]} 44. Bb7 {[%emt 0:00:15]} Kc5 {[%emt 0:01:30]} 45. Bc8 {[%emt 0:00:32]} e5 {[%emt 0:06:30]} 46. Be6 {[%emt 0:00:23]} Ne4 {[%emt 0:00:30]} 47. Kg1 {[%emt 0:00:48]} Ng5 {[%emt 0:05:30]} 48. Bd5 {[%emt 0:00:21]} e4 {[%emt 0:02:30]} 49. Ra1 {[%emt 0:00:30]} Nf3+ {[%emt 0:01:30]} 50. Kf1 {[%emt 0:00:08]} Nxh2+ {[%emt 0:00:30]} 51. Ke1 {[%emt 0:00:40]} Ng4 {[%emt 0:00:30]} 52. Ra5+ {[%emt 0:00:30]} Kd6 {[%emt 0:05:30]} 53. Ra6+ {[%emt 0:00:34]} Ke7 {[%emt 0:00:10]} 54. Ra3 {[%emt 0:00:52]} Ne5 {[%emt 0:02:42]} 55. Ra7+ {[%emt 0:00:23]} Kf6 {[%emt 0:00:55]} 56. Rxh7 {[%emt 0:00:31]} Nxc4 {[%emt 0:00:37]} 57. Bxc4 {[%emt 0:00:30]} Rxc4 {[%emt 0:00:00]} 58. Rh4 {[%emt 0:00:26]} Kg5 {[%emt 0:00:15]} 59. Kf1 {[%emt 0:00:27]} Rc2 {[%emt 0:00:34]} 60. Rf4 {[%emt 0:00:09]} Rh2 {[%emt 0:01:49]} 61. g4 {[%emt 0:01:05]} Rh4 {[%emt 0:00:29]} 62. Rf2 {[%emt 0:00:32]} Rxg4 {[%emt 0:01:03]} 63. Ke2 {[%emt 0:00:10]} Kf6 {[%emt 0:01:29]} 64. Rh2 {[%emt 0:00:08]} g5 {[%emt 0:03:25]} 65. Rh6+ {[%emt 0:00:42]} Ke5 {[%emt 0:00:17]} 66. Rh5 {[%emt 0:00:23]} Kf6 {[%emt 0:03:42]} 67. Rh6+ {[%emt 0:00:10]} Kg7 {[%emt 0:00:10]} 68. Re6 {[%emt 0:00:24]} Rg2+ {[%emt 0:00:30]} 69. Kf1 {[%emt 0:00:10]} Rb2 {[%emt 0:00:23]} 70. Re7+ {[%emt 0:00:28]} Kg6 {[%emt 0:00:10]} 71. Re5 {[%emt 0:00:39]} Rb4 {[%emt 0:00:28]} 72. Kf2 {[%emt 0:01:05]} f4 {[%emt 0:01:40]} 73. exf4 {[%emt 0:00:30]} gxf4 {[%emt 0:00:00]} 74. Ke2 {[%emt 0:00:00]} Rb2+ {[%emt 0:00:30]} 75. Kf1 {[%emt 0:00:40]} e3 {[%emt 0:00:12]} 76. Ke1 {[%emt 0:00:53]} Kf6 {[%emt 0:00:35]} 77. Re8 {[%emt 0:00:30]} Kf5 {[%emt 0:00:00]} 78. Rg8 {[%emt 0:00:08]} f3 {[%emt 0:01:48]} 79. Rf8+ {[%emt 0:00:34]} Kg4 {[%emt 0:00:06]} 80. Rg8+ {[%emt 0:00:00]} Kh5 {[%emt 0:00:15]} 0-1

[Event "TUR-chT Superleague 2018"]
[Site "Ankara"]
[Date "2018.08.02"]
[Round "9"]
[White "Ozcan, Kaan"]
[Black "Gunduz, Umut Erdem"]
[Result "0-1"]
[ECO "A37"]
[WhiteElo "1523"]
[BlackElo "2174"]
[Annotator "NA"]
[PlyCount "51"]
[EventDate "2018.07.25"]
[EventType "team-tourn"]
[EventCountry "TUR"]
[SourceTitle "playchess.com"]
[Source "ChessBase"]
[SourceQuality "1"]
[TimeControl "40/5400+30:1800+30"]

1. c4 {[%emt 0:00:30]} c5 {[%emt 0:00:30]} 2. Nc3 {[%emt 0:00:30]} Nc6 {[%emt 0:00:00]} 3. g3 {[%emt 0:01:30]} g6 {[%emt 0:00:00]} 4. Bg2 {[%emt 0:00:30]} Bg7 {[%emt 0:00:00]} 5. Nf3 {[%emt 0:00:00]} Nh6 {[%emt 0:00:00]} 6. O-O {[%emt 0:03:00]} O-O {[%emt 0:00:30]} 7. d3 {[%emt 0:01:30]} Nf5 {[%emt 0:00:30]} 8. Bd2 {[%emt 0:05:30]} a6 {[%emt 0:00:00]} 9. a3 {[%emt 0:05:30]} Rb8 {[%emt 0:06:00]} 10. Rb1 {[%emt 0:08:30]} b5 {[%emt 0:00:30]} 11. cxb5 {[%emt 0:06:30]} axb5 {[%emt 0:00:30]} 12. Ne4 {[%emt 0:08:30]} c4 {[%emt 0:06:30]} 13. dxc4 $15 {[%emt 0:10:30]} bxc4 {[%emt 0:00:30]} 14. Nc3 {[%emt 0:05:30]} d5 {[%emt 0:06:30]} 15. e3 {[%emt 0:11:30]} Nd6 {[%emt 0:08:30]} 16. Qa4 {[%emt 0:16:54]} Bd7 {[%emt 0:02:30]} 17. Nh4 {[%emt 0:10:51]} e6 {[%emt 0:00:30]} 18. Qd1 {[%emt 0:00:58]} Rb3 {[%emt 0:01:30]} 19. Qc2 {[%emt 0:00:43]} Qb6 {[%emt 0:00:30]} 20. Na4 {[%emt 0:00:47]} Qa7 {[%emt 0:00:00]} 21. Nc3 {[%emt 0:00:27]} Rfb8 {[%emt 0:00:00]} 22. Rfd1 {[%emt 0:00:15]} Ne5 {[%emt 0:00:30]} 23. Bf1 {[%emt 0:00:29]} g5 {[%emt 0:01:30]} 24. Ng2 {[%emt 0:00:41]} Nf3+ {[%emt 0:00:00]} 25. Kh1 {[%emt 0:00:00]} Nxd2 {[%emt 0:00:00]} 26. Qxd2 {[%emt 0:01:25]} 0-1

[Event "TUR-chT Superleague 2018"]
[Site "Ankara"]
[Date "2018.08.03"]
[Round "10"]
[White "Goganov, Aleksey"]
[Black "Zhigalko, Sergei"]
[Result "1/2-1/2"]
[ECO "E12"]
[WhiteElo "2586"]
[BlackElo "2615"]
[Annotator "ChessBase"]
[PlyCount "52"]
[EventDate "2018.07.25"]
[EventType "team-tourn"]
[EventCountry "TUR"]
[SourceTitle "playchess.com"]
[Source "ChessBase"]
[SourceQuality "1"]
[TimeControl "40/5400+30:1800+30"]

1. d4 {[%emt 0:00:30]} Nf6 {[%emt 0:00:30]} 2. c4 {[%emt 0:00:00]} e6 {[%emt 0:00:30]} 3. Nf3 {[%emt 0:00:00]} b6 {[%emt 0:00:30]} 4. a3 {[%emt 0:00:00]} Bb7 {[%emt 0:02:30]} 5. Nc3 {[%emt 0:00:00]} d5 {[%emt 0:00:30]} 6. Bg5 {[%emt 0:00:30]} Be7 {[%emt 0:15:30]} 7. e3 {[%emt 0:00:00]} O-O {[%emt 0:01:30]} 8. Qc2 {[%emt 0:00:00]} Nbd7 {[%emt 0:15:30]} 9. cxd5 {[%emt 0:00:30]} Nxd5 {[%emt 0:11:30]} 10. Bxe7 {[%emt 0:00:30]} Nxe7 {[%emt 0:00:30]} 11. Rd1 {[%emt 0:01:30]} Rc8 {[%emt 0:13:30]} 12. Be2 {[%emt 0:04:30]} Nd5 {[%emt 0:10:30]} 13. Nxd5 {[%emt 0:02:30]} exd5 {[%emt 0:00:30]} 14. O-O {[%emt 0:11:30]} c5 {[%emt 0:00:30]} 15. dxc5 {[%emt 0:00:00]} bxc5 {[%emt 0:00:00]} 16. Ne1 {[%emt 0:02:00]} Nf6 {[%emt 0:02:00]} 17. Bf3 {[%emt 0:04:30]} Qb6 {[%emt 0:01:30]} 18. Nd3 {[%emt 0:00:30]} Rfd8 {[%emt 0:02:22]} 19. Rfe1 {[%emt 0:06:30]} Ba6 {[%emt 0:03:25]} 20. Qc3 {[%emt 0:09:30]} h6 {[%emt 0:01:43]} 21. h3 {[%emt 0:08:30]} Bb7 {[%emt 0:03:10]} 22. Qc2 {[%emt 0:03:30]} Ba6 {[%emt 0:00:03]} 23. Qc3 {[%emt 0:13:30]} Bb7 {[%emt 0:00:02]} 24. Qc2 {[%emt 0:00:30]} Ba6 {[%emt 0:00:30]} 25. Qc3 {[%emt 0:00:30]} Bb7 {[%emt 0:00:30]} 26. Qc2 {[%emt 0:00:00]} Ba6 {[%emt 0:00:00]} 1/2-1/2

[Event "TUR-chT Superleague 2018"]
[Site "Ankara"]
[Date "2018.08.03"]
[Round "10"]
[White "Dastan, Muhammed Batuhan"]
[Black "Kilic, Efe Mert"]
[Result "1-0"]
[ECO "C41"]
[WhiteElo "2552"]
[BlackElo "2317"]
[Annotator "ChessBase"]
[PlyCount "101"]
[EventDate "2018.07.25"]
[EventType "team-tourn"]
[EventCountry "TUR"]
[SourceTitle "playchess.com"]
[Source "ChessBase"]
[SourceQuality "1"]
[TimeControl "40/5400+30:1800+30"]

1. e4 {[%emt 0:00:30]} d6 {[%emt 0:00:30]} 2. d4 {[%emt 0:00:30]} Nf6 {[%emt 0:00:00]} 3. Nc3 {[%emt 0:00:00]} e5 {[%emt 0:00:00]} 4. Nf3 {[%emt 0:03:00]} exd4 {[%emt 0:00:00]} 5. Nxd4 {[%emt 0:00:30]} Be7 {[%emt 0:00:00]} 6. Bf4 {[%emt 0:00:30]} O-O {[%emt 0:03:30]} 7. Qd2 {[%emt 0:01:30]} Nc6 {[%emt 0:00:30]} 8. O-O-O {[%emt 0:00:30]} Nxd4 {[%emt 0:02:30]} 9. Qxd4 {[%emt 0:00:30]} Be6 {[%emt 0:05:30]} 10. f3 {[%emt 0:07:30]} a6 {[%emt 0:14:30]} 11. Kb1 {[%emt 0:06:30]} Re8 {[%emt 0:04:30]} 12. g4 {[%emt 0:03:30]} c5 {[%emt 0:06:30]} 13. Qd2 {[%emt 0:01:30]} b5 {[%emt 0:00:30]} 14. g5 {[%emt 0:07:30]} Nd7 {[%emt 0:03:30]} 15. Bxd6 {[%emt 0:05:30]} Bxg5 {[%emt 0:16:30]} 16. f4 {[%emt 0:00:30]} Bh6 {[%emt 0:00:00]} 17. Qg2 {[%emt 0:00:30]} b4 {[%emt 0:03:00]} 18. Na4 {[%emt 0:00:30]} Nb6 {[%emt 0:09:30]} 19. Nxb6 {[%emt 0:03:30]} Qxb6 {[%emt 0:00:30]} 20. Qf3 {[%emt 0:05:30]} Rad8 {[%emt 0:03:30]} 21. e5 {[%emt 0:00:30]} g6 {[%emt 0:00:30]} 22. Bd3 {[%emt 0:05:30]} f5 {[%emt 0:01:30]} 23. b3 {[%emt 0:09:30]} Bf8 {[%emt 0:00:30]} 24. Bxf8 {[%emt 0:00:30]} Kxf8 {[%emt 0:00:30]} 25. Qh3 {[%emt 0:09:30]} Kg8 {[%emt 0:01:30]} 26. Rhg1 {[%emt 0:00:30]} Rd4 {[%emt 0:08:02]} 27. Qh6 {[%emt 0:07:30]} Red8 {[%emt 0:04:58]} 28. Rxg6+ {[%emt 0:13:36]} hxg6 {[%emt 0:00:30]} 29. Qxg6+ {[%emt 0:00:30]} Kf8 {[%emt 0:00:00]} 30. Rg1 {[%emt 0:00:22]} Ke7 {[%emt 0:03:44]} 31. Qf6+ {[%emt 0:00:10]} Kd7 {[%emt 0:00:44]} 32. Rg7+ {[%emt 0:03:03]} Kc8 {[%emt 0:00:30]} 33. Re7 {[%emt 0:00:00]} Rxd3 {[%emt 0:06:39]} 34. cxd3 {[%emt 0:00:35]} c4 {[%emt 0:00:05]} 35. Qxe6+ {[%emt 0:00:51]} Qxe6 {[%emt 0:00:30]} 36. Rxe6 {[%emt 0:00:00]} cxb3 {[%emt 0:00:17]} 37. Rc6+ {[%emt 0:02:29]} Kb7 {[%emt 0:00:50]} 38. Rd6 {[%emt 0:00:01]} bxa2+ {[%emt 0:00:24]} 39. Kxa2 {[%emt 0:00:30]} Rh8 {[%emt 0:00:00]} 40. Kb3 {[%emt 0:00:00]} a5 {[%emt 0:00:00]} 41. Rd5 {[%emt 0:05:53]} Kc6 {[%emt 0:04:47]} 42. Rxa5 {[%emt 0:00:30]} Rxh2 {[%emt 0:00:00]} 43. Kxb4 {[%emt 0:00:30]} Rf2 {[%emt 0:01:00]} 44. Rc5+ {[%emt 0:00:30]} Kd7 {[%emt 0:00:00]} 45. Rc4 {[%emt 0:00:30]} Ke6 {[%emt 0:01:00]} 46. Kc5 {[%emt 0:00:30]} Ra2 {[%emt 0:00:30]} 47. Rb4 {[%emt 0:00:30]} Rf2 {[%emt 0:00:30]} 48. Ra4 {[%emt 0:01:30]} Rf1 {[%emt 0:00:30]} 49. Ra6+ {[%emt 0:00:30]} Ke7 {[%emt 0:00:30]} 50. d4 {[%emt 0:00:30]} Rxf4 {[%emt 0:00:00]} 51. d5 {[%emt 0:00:00]} 1-0

[Event "TUR-chT Superleague 2018"]
[Site "Ankara"]
[Date "2018.08.03"]
[Round "10"]
[White "Sanal, Vahap"]
[Black "Korkmaz, Necmettin"]
[Result "1/2-1/2"]
[ECO "C06"]
[WhiteElo "2518"]
[BlackElo "2056"]
[Annotator "ChessBase"]
[PlyCount "197"]
[EventDate "2018.07.25"]
[EventType "team-tourn"]
[EventCountry "TUR"]
[SourceTitle "playchess.com"]
[Source "ChessBase"]
[SourceQuality "1"]
[TimeControl "40/5400+30:1800+30"]

1. e4 {[%emt 0:00:30]} e6 {[%emt 0:00:30]} 2. d4 {[%emt 0:00:30]} d5 {[%emt 0:00:00]} 3. Nd2 {[%emt 0:00:00]} Nf6 {[%emt 0:00:00]} 4. e5 {[%emt 0:00:00]} Nfd7 {[%emt 0:00:30]} 5. Bd3 {[%emt 0:00:00]} c5 {[%emt 0:00:30]} 6. c3 {[%emt 0:00:00]} Nc6 {[%emt 0:00:00]} 7. Ne2 {[%emt 0:00:30]} cxd4 {[%emt 0:00:00]} 8. cxd4 {[%emt 0:00:00]} f6 {[%emt 0:00:30]} 9. exf6 {[%emt 0:00:00]} Nxf6 {[%emt 0:00:00]} 10. Nf3 {[%emt 0:00:30]} Bd6 {[%emt 0:00:00]} 11. O-O {[%emt 0:00:00]} O-O {[%emt 0:00:30]} 12. Bf4 {[%emt 0:00:00]} Bxf4 {[%emt 0:00:00]} 13. Nxf4 {[%emt 0:00:30]} Ne4 {[%emt 0:00:00]} 14. Qc1 {[%emt 0:00:30]} Ng5 {[%emt 0:00:00]} 15. Nxg5 {[%emt 0:00:00]} Qxg5 {[%emt 0:00:00]} 16. Ne2 {[%emt 0:00:00]} Qf6 {[%emt 0:00:30]} 17. Qe3 {[%emt 0:00:30]} Bd7 {[%emt 0:00:30]} 18. Bb5 {[%emt 0:04:30]} Rae8 {[%emt 0:01:30]} 19. f4 {[%emt 0:08:30]} Nb8 {[%emt 0:00:30]} 20. Bd3 {[%emt 0:01:30]} Rc8 {[%emt 0:00:30]} 21. Rad1 {[%emt 0:01:30]} Nc6 {[%emt 0:00:00]} 22. Nc3 {[%emt 0:12:30]} a6 {[%emt 0:37:00]} 23. Bb1 {[%emt 0:02:30]} b5 {[%emt 0:00:30]} 24. Qh3 {[%emt 0:02:30]} g6 {[%emt 0:01:30]} 25. Qe3 {[%emt 0:02:30]} Ne7 {[%emt 0:05:30]} 26. Ne2 {[%emt 0:06:30]} b4 {[%emt 0:01:30]} 27. Nc1 {[%emt 0:07:30]} Nf5 {[%emt 0:02:30]} 28. Qd2 {[%emt 0:01:30]} a5 {[%emt 0:01:30]} 29. Bxf5 {[%emt 0:01:30]} Qxf5 {[%emt 0:00:30]} 30. Rf2 {[%emt 0:00:30]} Ba4 {[%emt 0:02:30]} 31. Nb3 {[%emt 0:01:30]} Bxb3 {[%emt 0:02:30]} 32. axb3 {[%emt 0:00:30]} Rc6 {[%emt 0:00:00]} 33. Qe3 {[%emt 0:02:30]} Rfc8 {[%emt 0:03:00]} 34. h3 {[%emt 0:01:30]} h5 {[%emt 0:08:30]} 35. Ra1 {[%emt 0:01:30]} Rc2 {[%emt 0:01:30]} 36. Rxa5 {[%emt 0:10:30]} Rxf2 {[%emt 0:02:30]} 37. Qxf2 {[%emt 0:00:00]} Rc1+ {[%emt 0:07:30]} 38. Kh2 {[%emt 0:00:00]} g5 {[%emt 0:00:30]} 39. Ra6 {[%emt 0:18:27]} Kf7 {[%emt 0:01:30]} 40. Qe2 {[%emt 0:00:00]} Qxf4+ {[%emt 0:02:30]} 41. g3 {[%emt 0:04:03]} Qf5 {[%emt 0:00:30]} 42. Qxh5+ {[%emt 0:05:30]} Ke7 {[%emt 0:00:30]} 43. Ra7+ {[%emt 0:00:30]} Kd6 {[%emt 0:00:30]} 44. Ra6+ {[%emt 0:00:00]} Kc7 {[%emt 0:02:30]} 45. Qf7+ {[%emt 0:00:00]} Qxf7 {[%emt 0:00:30]} 46. Ra7+ {[%emt 0:00:30]} Kd6 {[%emt 0:00:30]} 47. Rxf7 {[%emt 0:00:00]} Rc2+ {[%emt 0:01:30]} 48. Kg1 {[%emt 0:00:00]} Rxb2 {[%emt 0:00:00]} 49. Rb7 {[%emt 0:01:30]} Rxb3 {[%emt 0:00:00]} 50. Kf2 {[%emt 0:00:30]} Kc6 {[%emt 0:01:30]} 51. Rb8 {[%emt 0:00:00]} Kd7 {[%emt 0:02:30]} 52. Rb7+ {[%emt 0:01:00]} Kd6 {[%emt 0:00:30]} 53. h4 {[%emt 0:03:30]} gxh4 {[%emt 0:00:30]} 54. gxh4 {[%emt 0:00:30]} Rh3 {[%emt 0:00:30]} 55. Rxb4 {[%emt 0:00:30]} Rxh4 {[%emt 0:00:30]} 56. Ke3 {[%emt 0:00:00]} Rh3+ {[%emt 0:03:30]} 57. Kd2 {[%emt 0:00:00]} Ke7 {[%emt 0:02:30]} 58. Rb8 {[%emt 0:00:00]} Kf6 {[%emt 0:02:30]} 59. Rf8+ {[%emt 0:00:00]} Kg5 {[%emt 0:00:30]} 60. Ke2 {[%emt 0:00:30]} Rh4 {[%emt 0:03:30]} 61. Ke3 {[%emt 0:07:30]} Rh3+ {[%emt 0:02:30]} 62. Ke2 {[%emt 0:00:00]} Rh6 {[%emt 0:00:30]} 63. Ke3 {[%emt 0:00:00]} Rf6 {[%emt 0:00:30]} 64. Rg8+ {[%emt 0:00:30]} Kf5 {[%emt 0:00:30]} 65. Kf3 {[%emt 0:00:30]} Rf7 {[%emt 0:00:30]} 66. Ke3 {[%emt 0:00:30]} Kf6 {[%emt 0:00:30]} 67. Ra8 {[%emt 0:00:30]} Rb7 {[%emt 0:00:30]} 68. Rf8+ {[%emt 0:00:30]} Ke7 {[%emt 0:00:30]} 69. Rh8 {[%emt 0:00:00]} Rb3+ {[%emt 0:00:30]} 70. Ke2 {[%emt 0:00:00]} Kd7 {[%emt 0:00:00]} 71. Kd2 {[%emt 0:00:00]} Kc6 {[%emt 0:00:00]} 72. Re8 {[%emt 0:00:00]} Kb5 {[%emt 0:02:30]} 73. Rc8 {[%emt 0:01:30]} Ra3 {[%emt 0:08:30]} 74. Rc5+ {[%emt 0:00:30]} Kb4 {[%emt 0:01:30]} 75. Rc6 {[%emt 0:00:30]} Rh3 {[%emt 0:03:30]} 76. Rc8 {[%emt 0:00:30]} Kb5 {[%emt 0:02:29]} 77. Rc7 {[%emt 0:00:30]} Kb6 {[%emt 0:00:11]} 78. Rc8 {[%emt 0:00:30]} Rh7 {[%emt 0:00:00]} 79. Ke3 {[%emt 0:00:30]} Rc7 {[%emt 0:01:03]} 80. Re8 {[%emt 0:00:00]} Rc6 {[%emt 0:04:46]} 81. Re7 {[%emt 0:01:00]} Rc3+ {[%emt 0:01:06]} 82. Kd2 {[%emt 0:00:30]} Rh3 {[%emt 0:00:38]} 83. Re8 {[%emt 0:00:30]} Rh6 {[%emt 0:00:25]} 84. Rc8 {[%emt 0:00:30]} Kb7 {[%emt 0:00:47]} 85. Rc1 {[%emt 0:00:30]} Rh8 {[%emt 0:00:12]} 86. Ke3 {[%emt 0:00:30]} Rc8 {[%emt 0:02:21]} 87. Rh1 {[%emt 0:00:00]} Kc7 {[%emt 0:00:02]} 88. Kd3 {[%emt 0:01:00]} Kd6 {[%emt 0:00:30]} 89. Rh7 {[%emt 0:00:00]} Rg8 {[%emt 0:00:41]} 90. Ra7 {[%emt 0:00:00]} Rg3+ {[%emt 0:00:51]} 91. Kd2 {[%emt 0:00:00]} Rg5 {[%emt 0:01:13]} 92. Ke3 {[%emt 0:01:00]} Rh5 {[%emt 0:00:45]} 93. Rg7 {[%emt 0:00:00]} Rh4 {[%emt 0:00:27]} 94. Kd3 {[%emt 0:00:00]} Rh6 {[%emt 0:01:20]} 95. Ke3 {[%emt 0:00:30]} e5 {[%emt 0:00:14]} 96. dxe5+ {[%emt 0:00:30]} Kxe5 {[%emt 0:00:30]} 97. Re7+ {[%emt 0:00:00]} Kd6 {[%emt 0:00:11]} 98. Ra7 {[%emt 0:00:00]} Rh4 {[%emt 0:00:44]} 99. Kd3 {[%emt 0:00:30]} 1/2-1/2

[Event "TUR-chT Superleague 2018"]
[Site "Ankara"]
[Date "2018.08.03"]
[Round "10"]
[White "Kanmazalp, Ogulcan"]
[Black "Triapishko, Alexandr"]
[Result "0-1"]
[ECO "C47"]
[WhiteElo "2481"]
[BlackElo "2502"]
[Annotator "ChessBase"]
[PlyCount "66"]
[EventDate "2018.07.25"]
[EventType "team-tourn"]
[EventCountry "TUR"]
[SourceTitle "playchess.com"]
[Source "ChessBase"]
[SourceQuality "1"]
[TimeControl "40/5400+30:1800+30"]

1. e4 {[%emt 0:00:30]} e5 {[%emt 0:00:30]} 2. Nf3 {[%emt 0:00:30]} Nc6 {[%emt 0:00:00]} 3. Nc3 {[%emt 0:00:00]} Nf6 {[%emt 0:01:00]} 4. d4 {[%emt 0:00:00]} Bb4 {[%emt 0:00:30]} 5. Nxe5 {[%emt 0:00:30]} Qe7 {[%emt 0:01:30]} 6. Qd3 {[%emt 0:00:30]} Nxd4 {[%emt 0:07:30]} 7. Qxd4 {[%emt 0:00:30]} Bc5 {[%emt 0:00:00]} 8. Qd3 {[%emt 0:10:30]} Qxe5 {[%emt 0:00:00]} 9. f4 {[%emt 0:00:00]} Qe7 {[%emt 0:17:30]} 10. Be2 {[%emt 0:09:00]} d6 {[%emt 0:00:30]} 11. Bd2 {[%emt 0:06:30]} O-O {[%emt 0:07:30]} 12. O-O-O {[%emt 0:00:00]} c6 {[%emt 0:08:30]} 13. h3 {[%emt 0:10:00]} b5 {[%emt 0:03:30]} 14. Bf3 {[%emt 0:01:30]} Be6 {[%emt 0:07:30]} 15. Be3 {[%emt 0:00:30]} Bc4 {[%emt 0:03:30]} 16. Qd2 {[%emt 0:00:00]} b4 {[%emt 0:14:30]} 17. Na4 {[%emt 0:27:00]} Bxe3 {[%emt 0:01:30]} 18. Qxe3 {[%emt 0:00:30]} Bb5 {[%emt 0:05:19]} 19. b3 {[%emt 0:03:30]} Bxa4 {[%emt 0:02:54]} 20. bxa4 {[%emt 0:00:30]} d5 {[%emt 0:03:42]} 21. Rhe1 {[%emt 0:01:30]} Rfe8 {[%emt 0:00:44]} 22. g4 {[%emt 0:02:30]} dxe4 {[%emt 0:08:36]} 23. g5 {[%emt 0:00:00]} b3 {[%emt 0:00:37]} 24. gxf6 {[%emt 0:17:37]} Qa3+ {[%emt 0:00:09]} 25. Kd2 {[%emt 0:00:00]} Qb4+ {[%emt 0:01:28]} 26. c3 {[%emt 0:02:53]} Qd6+ {[%emt 0:00:19]} 27. Qd4 {[%emt 0:02:10]} Qxf4+ {[%emt 0:00:30]} 28. Qe3 {[%emt 0:00:00]} Qd6+ {[%emt 0:00:47]} 29. Qd4 {[%emt 0:00:01]} Qh2+ {[%emt 0:02:29]} 30. Re2 {[%emt 0:00:45]} Qf4+ {[%emt 0:00:08]} 31. Ke1 {[%emt 0:00:04]} Qxf3 {[%emt 0:00:14]} 32. axb3 {[%emt 0:00:43]} e3 {[%emt 0:00:55]} 33. Rc2 {[%emt 0:02:03]} e2 {[%emt 0:00:15]} 0-1